Cogmind - Beta 14 @@@ ROGUE MODE // 2024.12.10 @ 11:43:17 Player: Tereza Result: Destroyed by as-84795 with Assembled Rifle Performance ------------- Evolutions (0) 0 Regions Visited (2) 400 Robots Destroyed (26) 130 Value Destroyed (703) 703 Prototype IDs (2) 40 Alien Tech Used (0) 0 Bonus (0) 0 TOTAL SCORE: 1273 Bonus ------- None Cogmind --------- Core Integrity 0/250 Matter 160/300 Energy 100/100 System Corruption 0% Temperature Cool (0) Movement Rolling (130) Ox2 Location -10/Mines Parts ------- > --- POWER (1) -------- (None) > --- PROPULSION (2) --- Light Treads Compact Wheel > --- UTILITY (2) ------ High-capacity Storage Unit Sensor Array > --- WEAPON (2) ------- Grenade Launcher > --- INVENTORY (20) --- Ion Engine Light Treads Wheel Improved Heat Sink Sensor Array Sensor Array Signal Interpreter Targeting Computer Hacking Suite Hacking Suite Light Assault Rifle Light Assault Rifle Grenade Launcher Grenade Launcher Datajack Mining Laser Peak State ------------ > --- POWER ------------ Ion Engine > --- PROPULSION ------- Light Treads Light Treads > --- UTILITY ---------- Improved Heat Sink Small Storage Unit > --- WEAPON ----------- Light Assault Rifle Light Assault Rifle > --- INVENTORY -------- Ion Engine Aluminum Leg Aluminum Leg Wheel Compact Wheel Signal Interpreter Hacking Suite Light Assault Rifle [Rating: 10] Favorites ----------- Power Ion Engine Engine Ion Engine Propulsion Light Treads Treads Light Treads Wheel Compact Wheel Utility Sensor Array Device Sensor Array Storage Large Storage Unit Weapon Light Assault Rifle Ballistic Gun Light Assault Rifle Ballistic Cannon Light Cannon Launcher Grenade Launcher Build | -11 -10 -10 ------- Run | Yrd Mat Min Slots Evolved . | . . . Power . | . . . Propulsion . | . . . Utility . | . . . Weapon . | . . . Parts Attached 20 | 6 10 4 Power 2 | 1 1 . Engine 2 | 1 1 . Core . | . . . Reactor . | . . . Propulsion 4 | 2 2 . Treads 3 | 2 1 . Leg . | . . . Wheel 1 | . 1 . Hover . | . . . Flight . | . . . Utility 6 | 1 5 . Device 2 | . 2 . Storage 4 | 1 3 . Processor . | . . . Hackware . | . . . Protection . | . . . Artifact . | . . . Weapon 8 | 2 2 4 Energy Gun . | . . . Energy Cannon . | . . . Ballistic Gun 4 | 2 1 1 Ballistic Cannon 1 | . 1 . Launcher 3 | . . 3 Special Weapon . | . . . Impact Weapon . | . . . Slashing Weapon . | . . . Piercing Weapon . | . . . Special Melee Weapon . | . . . Unidentified Prototypes . | . . . Parts Lost 10 | . 7 3 Power 2 | . 2 . Propulsion 2 | . 2 . Utility 1 | . 1 . Weapon 5 | . 2 3 Highest Loss Streak 3 | . 3 2 To Critical Strikes . | . . . Average Slot Usage (%) 80 | . 80 85 Engine 4 | . 5 . Treads 14 | . 14 14 Wheel 9 | . 8 14 Device 8 | . 7 14 Storage 14 | . 14 14 Ballistic Gun 20 | . 22 10 Ballistic Cannon 7 | . 5 14 Peak Build Rating 10 | 6 10 8 Average Rating 6 | 4 6 7 On Entrance 4 | . 6 8 Naked Turns . | . . . Heaviest Build 47 | 12 45 47 Greatest Support 40 | 40 40 16 Greatest Overweight (x) 2 | . 2 2 Average Overweight (x) 1 | . 1 2 Largest Inventory Capacity 20 | 8 20 20 Average Capacity 14 | 6 14 20 Most Carried 18 | 6 18 18 Average Carried 12 | 4 12 17 Final Capacity 20 | 8 20 20 Final Carried 18 | 6 18 16 Class Distribution -------------------- 100% | Mutant Dominant Class ---------------- Mutant | -10/Materials Mutant | -10/Mines Resources | -11 -10 -10 ----------- Run | Yrd Mat Min Matter Collected 646 | 188 405 53 Remotely . | . . . Salvage Created 803 | . 739 64 Parts 51 | . 47 4 Haulers Intercepted 2 | . 2 . Recyclers Shooed . | . . . Parts Field Recycled . | . . . Retrieved Matter . | . . . Parts Self-Destructed . | . . . Prevented . | . . . Kills | -11 -10 -10 ------- Run | Yrd Mat Min Combat Hostiles Destroyed 22 | . 16 6 Guns 13 | . 13 . Cannons 6 | . 3 3 AOE 3 | . . 3 Classes Destroyed 7 | . 5 2 Tunneler 1 | . . 1 Hauler 2 | . 2 . Operator 2 | . 2 . Watcher 3 | . 3 . Swarmer 3 | . 3 . Grunt 15 | . 13 2 Assembled 4 | . . 4 Best Kill Streak 3 | . 3 3 Combat Bots Only 3 | . 3 3 Max Kills in Single Turn 2 | . 1 2 Gunslinging . | . . . Exploded 1 | . . 1 Melee . | . . . Uniques/NPCs Destroyed . | . . . Combat | -11 -10 -10 -------- Run | Yrd Mat Min Hostile Shots Fired 136 | . 104 32 Missed 36 | . 27 9 Damage Taken 1305 | . 928 377 Core 251 | . 167 84 Absorbed by Shields . | . . . Core Remaining (%) 100 | 100 . . Volleys Fired 119 | . 101 18 Largest 2 | . 2 2 Hottest 65 | . 55 65 Shots Fired 235 | . 202 33 Gun 186 | . 180 6 Cannon 40 | . 22 18 Launcher 9 | . . 9 Special . | . . . Kinetic 226 | . 202 24 Thermal . | . . . Explosive 9 | . . 9 Electromagnetic . | . . . Robot Hit Streak 14 | . 14 4 Robot Miss Streak 5 | . 5 3 Penetration Max . | . . . Secondary Targets 3 | . 3 . Max Gunslinging Chain 1 | . 1 . Shots Hit Robots 154 | . 135 19 Core Hits 65 | . 51 14 Critical Kills . | . . . Critical Parts Destroyed 1 | . 1 . Critical Strikes 2 | . 1 1 Destroy 1 | . 1 . Blast 1 | . . 1 Melee Attacks . | . . . Impact . | . . . Slashing . | . . . Piercing . | . . . Sneak Attacks . | . . . Combat Hostiles . | . . . Follow-up Attacks . | . . . Damage Inflicted 1730 | . 1205 525 Guns 1004 | . 991 13 Cannons 390 | . 214 176 Explosions 336 | . . 336 Melee . | . . . Ramming . | . . . Kinetic 1394 | . 1205 189 Thermal . | . . . Explosive 336 | . . 336 Electromagnetic . | . . . Impact . | . . . Slashing . | . . . Piercing . | . . . Highest Corruption . | . . . Average Corruption . | . . . Corruption Purged . | . . . Corruption Blocked . | . . . Overload Shots . | . . . Overflow Damage 23 | . 15 8 Projectiles 23 | . 15 8 Explosions . | . . . Melee . | . . . Knockbacks 2 | . . 2 Impact . | . . . Kinetic 1 | . . 1 Secondary 1 | . . 1 Self-Inflicted Damage 53 | . . 53 Shots 2 | . . 2 Rammed . | . . . Targets Rammed . | . . . Kicked . | . . . Crushed . | . . . Highest Temperature 28 | . 28 19 Average Temperature 7 | . 7 7 Received Heat Transfer 567 | . 501 66 Siege Activations . | . . . Robots Corrupted . | . . . Combat Hostiles . | . . . Parts Fried . | . . . Impact Corruptions . | . . . Robots Melted . | . . . Combat Hostiles . | . . . Parts Melted . | . . . Heat Transferred . | . . . Parts Sabotaged . | . . . Parts Stolen . | . . . Parts Stripped . | . . . Power Chain Reactions . | . . . Alert | -11 -10 -10 ------- Run | Yrd Mat Min Peak Influence 195 | . 195 83 Initial . | . . . Average 80 | . 89 55 Maximum Alert Level . | . . . Low Security (%) 100 | 100 100 100 Level 1 . | . . . Level 2 . | . . . Level 3 . | . . . Level 4 . | . . . Level 5 . | . . . High Security . | . . . Max Security . | . . . Squads Dispatched 3 | . 3 . Investigation 1 | . 1 . Extermination . | . . . Reinforcement 2 | . 2 . Assault . | . . . Garrison . | . . . Intercept . | . . . Searches Triggered . | . . . Construction Impeded . | . . . Haulers Reinforced . | . . . Active Scanning Responses . | . . . Cargo Convoy Interrupts . | . . . Stealth | -11 -10 -10 --------- Run | Yrd Mat Min Distress Signals 4 | . 4 . Communications Jammed . | . . . Distress Signals . | . . . Times Spotted 34 | . 26 8 Peak Tracking Total 5 | . 5 3 Tactical Retreats 1 | . . 1 Traps | -11 -10 -10 ------- Run | Yrd Mat Min Traps Triggered 1 | . 1 . Indirectly . | . . . Trap Hack Attempts . | . . . Triggered . | . . . Disarmed . | . . . Reprogrammed . | . . . Reused . | . . . Traps Extracted . | . . . Installed . | . . . Triggered . | . . . Machines | -11 -10 -10 ---------- Run | Yrd Mat Min Machines Disabled 2 | . 2 . Max in Single Turn 1 | . 1 . Machines Repaired . | . . . Machines Dismantled . | . . . Machines Sabotaged . | . . . Overloaded Fab Kills . | . . . Hacking | -11 -10 -10 --------- Run | Yrd Mat Min Machines Accessed 4 | . 4 . Terminals 4 | . 4 . Fabricators . | . . . Repair Stations . | . . . Recycling Units . | . . . Scanalyzers . | . . . Garrison Access . | . . . Total Hacks 15 | . 15 . Successful 10 | . 10 . Failed 5 | . 5 . Catastrophic . | . . . Database Lockouts . | . . . Manual 7 | . 7 . Terminals 15 | . 15 . Fabricators . | . . . Repair Stations . | . . . Recycling Units . | . . . Scanalyzers . | . . . Garrison Access . | . . . Terminal Hacks 10 | . 10 . Record 1 | . 1 . Robot Analysis 4 | . 4 . Prototype ID Bank 1 | . 1 . Scanalyzer Index 1 | . 1 . Alert Level 2 | . 2 . Zone Layout 1 | . 1 . Fabricator Hacks . | . . . Repair Station Hacks . | . . . Recycling Unit Hacks . | . . . Scanalyzer . | . . . Garrison Access Hacks . | . . . Unauthorized Hacks . | . . . Terminals . | . . . Fabricators . | . . . Repair Stations . | . . . Recycling Units . | . . . Scanalyzers . | . . . Garrison Access . | . . . Data Cores Recovered . | . . . Used . | . . . Hacking Detections 4 | . 4 . Full Trace Events . | . . . Feedback Events . | . . . Feedback Blocked . | . . . Robot Schematics Acquired . | . . . Robots Built . | . . . Authchips . | . . . Time . | . . . Total Robot Build Rating . | . . . Part Schematics Acquired . | . . . Parts Built . | . . . Authchips . | . . . Time . | . . . Total Part Build Rating . | . . . Parts Repaired . | . . . Time . | . . . Parts Recycled . | . . . Recycled Matter . | . . . Retrieved Matter . | . . . Retrieved Components . | . . . Parts Scanalyzed . | . . . Part Schematics Acquired . | . . . Parts Damaged . | . . . Bothacking | -11 -10 -10 ------------ Run | Yrd Mat Min Used RIF Installer . | . . . Robots Hacked . | . . . Non-combat . | . . . Combat . | . . . Robot Hacks Applied . | . . . Relay Couplers Released . | . . . Fabnet Peak Effective % . | . . . Robots Rewired . | . . . Allies Hacked . | . . . Hacks Repelled . | . . . Allies | -11 -10 -10 -------- Run | Yrd Mat Min Total Allies . | . . . Largest Group . | . . . Highest-Rated Group . | . . . Highest-Rated Ally . | . . . Total Orders . | . . . Ally Attacks . | . . . Total Damage . | . . . Kills . | . . . Allies Corrupted . | . . . Allies Melted . | . . . Intel | -11 -10 -10 ------- Run | Yrd Mat Min Robot Analysis Total 4 | . 4 . Derelict Logs Recovered . | . . . Drone Launches . | . . . Drone Recoveries . | . . . Exploration | -11 -10 -10 ------------- Run | Yrd Mat Min Turns Passed 1630 | 76 1291 263 Spaces Moved 938 | 45 732 161 Core 9 | 9 . . Treads 243 | 36 207 . Legs . | . . . Wheels 686 | . 525 161 Hover . | . . . Flight . | . . . Fastest Speed 50 | 50 115 130 Average Speed 132 | 138 132 130 Slowest Speed 240 | 160 240 130 Overloaded Moves . | . . . Propulsion Burnouts . | . . . Robots Hopped . | . . . Cave-ins Triggered . | . . . Exploration Rate (%) 48 | 4 96 44 Regions Visited 2 Branch Regions 1 Pre-discovered Areas . | . . . Known Exits Taken . | . . . Unknown Exits Taken 2 | 1 1 . Scrap Searched . | . . . Spaces Dug . | . . . Terrain Destroyed 44 | . . 44 Melee . | . . . Projectile . | . . . AOE 44 | . . 44 Terrain Rammed . | . . . Walls Destroyed . | . . . Machines Disabled . | . . . Actions | -11 -10 -10 --------- Run | Yrd Mat Min Total 1131 | 56 892 183 Wait 19 | . 19 . Move 936 | 44 731 161 Hop . | . . . Pick Up 27 | 6 21 . Fast Attach 11 | 6 5 . Attach 6 | . 4 2 Detach 2 | . 2 . Swap 3 | . 1 2 Drop 8 | . 8 . Fire 119 | . 101 18 Melee . | . . . Ram . | . . . Kick . | . . . Crush . | . . . Escape Stasis . | . . . Rewire . | . . . Trap . | . . . Miscellaneous . | . . . Route ------- -11/Scrapyard -10/Materials (discovered 6 exits: [*Mat x3] / [*Min x2] / [*Sub]) -10/Mines History --------- Turn | Location | Event 34 | -11/Scrapyard | Discovered new exit (range 16) 77 | -11/Scrapyard | Entered Materials 248 | -10/Materials | Discovered new exit (range 15) 305 | -10/Materials | Build established: Mutant 383 | -10/Materials | Discovered new exit (range 3) 618 | -10/Materials | Core integrity fell below 50% 657 | -10/Materials | Discovered new exit (range 10) 658 | -10/Materials | Lost 3 parts (1p1n1w) 1043 | -10/Materials | Discovered new exit (range 12) 1234 | -10/Materials | Discovered new exit (range 15) 1360 | -10/Materials | Discovered new exit (range 14) 1368 | -10/Materials | Entered Mines 1370 | -10/Mines | Met a Derelict bent on vengeance 1455 | -10/Mines | Assembled infested the area 1460 | -10/Mines | Assisted by a Guerilla fighting off Assembled 1622 | -10/Mines | Core integrity fell below 20% 1631 | -10/Mines | Destroyed by as-84795 with Assembled Rifle Last Messages --------------- need to get out of here! I've been tracking a group of Assembled to figure out where they're coming from, and they're closing on this area, come on!" 01474_ K-01 Serf collects debris. 01577_ T-07 Excavator destroyed. 01577_ Destroyed Asb. Hover Unit. 01580_ as-86748 destroyed. 01586_ R-06 Scavenger collects Lgt. Ion Engine. 01590_ R-06 Scavenger collects Imp. Terrain Scanner. 01607_ as-91453 destroyed. 01616_ as-90343 destroyed. 01619_ The unstable cave ceiling collapses. 01620_ Grenade Launcher destroyed. 01630_ as-92113 suffers critical hit (Blast). 01630_ Destroyed Asb. Hover Unit. 01630_ as-92113 destroyed. 01631_ The unstable cave ceiling collapses. 01631_ Lgt. Cannon destroyed. Map ----- +----------------------------------------------------+ | ??????????????# ##?## #?????????????????? | | ??????????????## ### #?????????????????? | | ???????????????# ##?????????????????? | | ??????????????## ##??????????????????? | | ??????????????# ##???????????????????? | | ??????????????# #????????????????????? | | ?????????????## #????????????????????? | | ?????????? #????????????????????? | | ?????????? """ #????????????????????? | | ?????????? ## """ ##????????????????????? | | ?????????? ??# """ ##?????????????????????? | | ?????????????# ## ##?????????????????????? | | ?????????????# ### #?## ###???????????????????? | | ?????????????#????# ???#? ##??????????????????? | | ??????????????????# ??## #??????????????????? | | ?????????????????? ### #??????????????????? | | ????????????????????# #??????????????????? | | ???????????????????## ##??????????????????? | | ???????????????????# #???????###?????????? | | ???????????????????# #????? % ????????? | | ???????????????????# ? #???? ????????? | | ???????????????????## % ##??? a ????????? | | ????????????????????# ? ##?? $ ???????? | | ????????????????????### ### # a ???????? | | ??????????????????????# # ??????? | | ??????????????????????# @ ??????? | | ??????????????????????# ??????? | | ??????????????????????### ##???????????? | | ????????????????????????# # # ###???????????? | | ????????????????????????######? ##???????????????? | | ????????????????????????????????#????????????????? | | ?????????????????????????????????????????????????? | | ?????????????????????????????????????????????????? | | ?????????????????????????????????????????????????? | | ?????????????????????????????????????????????????? | | ?????????????????????????????????????????????????? | | | | | | | | | | | | | | | | | | | | | | | | | | | | | +----------------------------------------------------+ Best States ------------- Heat Dissipation 39 Energy Generation 10 Energy Capacity 250 Matter Stores 300 Matter Capacity 300 Sight Range 16 Robot Scan Range 14 Terrain Scan Density 10 Evasion (%) 50 Recoil Reduction 2 Item Schematics ----------------- None Robot Schematics ------------------ None Fabricated ------------ Nothing Alien Tech Used ----------------- None Achievements -------------- None Challenges ------------ None Game ------ Seed HeartTrapBox Manual? 0 Play Time 00:09:37 Cumulative 136.0 hours Start 2024.12.10 @ 11:35:06 End 2024.12.10 @ 11:43:17 Sessions 1 Manual Loads 0 Difficulty Rogue Special Mode None Game No. 166 Rogue 166 Adventurer 0 Explorer 0 Win Type - Total 3 Types 3/0/0/0/0/0/0/0/0 Lore% 67 Gallery% 57 Achievement% 48 Wizard Run 0 Options --------- Layout 1 ASCII 0 Keyboard 1 Movement Numpad Keybinds 0 Fullscreen 1 Font 24/Smallcaps Map View 50x35 Zoom Use 0% Tactical HUD 1 Map Filters NONE Filters NONE Steam 1 RUN: 004b5f5b-0e44-48be-b021-be0121eb7c1b